bitfinex/quotes_BTCUSD_20240723
["timestamp","ask_amount","ask_price","bid_price","bid_amount"]
[1721767861965,0.14701991,66083.0,66080.0,0.05]
[1721767862095,0.14701991,66082.0,66078.0,0.05]
[1721767862289,0.151332,66080.0,66079.0,0.05]
[1721767862514,0.151332,66080.0,66078.0,0.05]
[1721767862740,0.151332,66080.0,66079.0,0.05]
[1721767862940,0.453995,66080.0,66079.0,0.05]
[1721767863172,0.36521991,66080.0,66072.0,0.05]
[1721767863354,0.36521991,66080.0,66074.0,0.05]
[1721767863355,0.302681,66076.0,66074.0,0.05]
[1721767863555,0.151345,66074.0,66073.0,0.1]
[1721767863788,0.302684,66076.0,66073.0,0.05]
[1721767863789,0.302688,66075.0,66073.0,0.05]
[1721767863995,0.15134,66076.0,66075.0,0.05]
[1721767865359,0.302652,66083.0,66075.0,0.05]
[1721767865360,0.31092729,66087.0,66079.0,0.05]
[1721767865554,0.2182,66093.0,66075.0,0.005]
[1721767865555,0.151324,66083.0,66082.0,0.05]
[1721767865826,0.29834391,66083.0,66082.0,0.05]
[1721767866262,0.60099291,66083.0,66082.0,0.05]
[1721767867542,0.60099291,66083.0,66074.0,0.251344]
[1721767867543,0.151333,66080.0,66079.0,0.001]
[1721767867670,0.453997,66080.0,66079.0,0.001]
[1721767867875,0.151333,66080.0,66079.0,0.001]
[1721767868071,0.151334,66079.0,66078.0,0.05]
[1721767868540,0.302668,66079.0,66075.0,0.05]
[1721767868654,0.302668,66079.0,66077.0,0.05]
[1721767868655,0.151336,66078.0,66077.0,0.05]
[1721767868856,0.151336,66078.0,66074.0,0.05]
[1721767868857,0.454029,66075.0,66074.0,0.05]
[1721767869121,0.454029,66075.0,66070.0,0.1]
[1721767869122,0.151347,66074.0,66071.0,0.05]
[1721767869276,0.14701991,66074.0,66069.0,0.000913]
[1721767869480,0.29836491,66074.0,66073.0,0.05]
[1721767869764,0.60105491,66074.0,66073.0,0.05]
[1721767870867,0.15135,66072.0,66071.0,0.05]
[1721767871081,0.151348,66073.0,66071.0,0.05]
[1721767871236,0.29836491,66074.0,66073.0,0.05]
[1721767871859,0.29836491,66074.0,66071.0,0.05]
[1721767871860,0.45405,66072.0,66071.0,0.05]
[1721767872035,0.151348,66073.0,66072.0,0.05]
[1721767872240,0.454043,66073.0,66072.0,0.05]
[1721767872802,0.45405,66072.0,66069.0,0.0138443]
[1721767873002,0.15135,66072.0,66071.0,0.05]
[1721767873453,0.45405,66072.0,66071.0,0.05]
[1721767873835,0.14701991,66074.0,66073.0,0.05]
[1721767874033,0.60926871,66074.0,66073.0,0.05]
[1721767874653,0.151353,66071.0,66069.0,0.000913]
[1721767874853,0.151353,66071.0,66070.0,0.05]
[1721767875508,0.302701,66072.0,66069.0,0.000913]
[1721767875673,0.151354,66070.0,66069.0,0.000913]
[1721767875872,0.90379191,66070.0,66069.0,0.050913]
[1721767876883,0.90379191,66070.0,66069.0,0.000913]
[1721767877049,0.90379191,66070.0,66069.0,0.050913]
[1721767878317,0.90379191,66070.0,66069.0,0.052913]
[1721767878505,0.90379191,66070.0,66069.0,0.002913]
[1721767878506,1.20650091,66070.0,66069.0,0.002913]
[1721767878696,1.20650091,66070.0,66069.0,0.050913]
[1721767878697,0.90379191,66070.0,66069.0,0.050913]
[1721767878893,1.20650091,66070.0,66069.0,0.000913]
[1721767879072,1.20850091,66070.0,66069.0,0.051913]
[1721767880445,1.20650091,66070.0,66069.0,0.050913]
[1721767881206,1.20850091,66070.0,66069.0,0.051913]
[1721767881683,1.27247748,66070.0,66069.0,0.000913]
[1721767881955,1.20850091,66070.0,66069.0,0.051913]
[1721767882197,1.30850091,66070.0,66069.0,0.051913]
[1721767882991,1.30850091,66070.0,66069.0,0.001913]
[1721767883240,1.61120991,66070.0,66069.0,0.001913]
[1721767883479,1.60920991,66070.0,66069.0,0.000913]
[1721767883719,1.75617256,66070.0,66069.0,0.000913]
[1721767883957,2.21838156,66070.0,66069.0,0.000913]
[1721767884196,2.21838156,66070.0,66045.0,0.05]
[1721767884197,0.6953155,66070.0,66045.0,0.05]
[1721767884467,0.757,66050.0,66049.0,0.05018225]
[1721767884905,0.4542,66050.0,66049.0,0.05018225]
[1721767885121,0.90401991,66050.0,66049.0,0.00018225]
[1721767885533,1.20681991,66050.0,66049.0,0.00018225]
[1721767886141,0.90401991,66050.0,66049.0,0.00018225]
[1721767886558,1.35378256,66050.0,66049.0,0.00018225]
[1721767886761,1.75958256,66050.0,66049.0,0.00018225]
[1721767887098,1.75658256,66050.0,66049.0,0.00018225]
[1721767887513,1.80958256,66050.0,66049.0,0.00118225]
[1721767887937,1.81601912,66050.0,66049.0,0.00018225]
[1721767888205,2.27831912,66050.0,66049.0,0.00018225]
[1721767888409,0.91971931,66050.0,66031.0,0.05]
[1721767888652,0.757207,66032.0,66031.0,0.05]
[1721767888858,0.757207,66032.0,66029.0,0.05]
[1721767888859,1.060122,66030.0,66029.0,0.05]
[1721767889075,0.90424991,66030.0,66029.0,0.05]
[1721767889867,0.60135791,66030.0,66029.0,0.05]
[1721767890297,0.90424991,66030.0,66029.0,0.05]
[1721767890781,0.90724991,66030.0,66029.0,0.051]
[1721767891114,0.90424991,66030.0,66029.0,0.05]
[1721767891323,0.90724991,66030.0,66029.0,0.05]
[1721767892727,0.90424991,66030.0,66029.0,0.05]
[1721767892941,0.90824991,66030.0,66029.0,0.051]
[1721767893209,0.004,66030.0,66029.0,0.202448]
[1721767893479,0.4688,66044.0,66043.0,0.05]
[1721767893734,0.61581991,66044.0,66043.0,0.12348942]
[1721767893973,1.07006191,66044.0,66043.0,0.05]
[1721767894192,1.37288991,66044.0,66043.0,0.05]
[1721767894816,1.07825513,66044.0,66043.0,0.05]
[1721767896175,1.38108313,66044.0,66043.0,0.05]
[1721767896436,1.07825513,66044.0,66043.0,0.05]
[1721767896640,1.10832447,66044.0,66043.0,0.05]
[1721767896954,1.10832447,66044.0,66043.0,0.051]
[1721767896955,1.11232447,66044.0,66043.0,0.051]
[1721767897178,0.62801313,66044.0,66043.0,0.051]
[1721767897354,0.77942713,66044.0,66043.0,0.051]
[1721767897555,1.08225513,66044.0,66043.0,0.051]
[1721767898364,1.38508313,66044.0,66043.0,0.051]
[1721767899343,0.91628313,66044.0,66043.0,0.051]
[1721767901061,0.61345513,66044.0,66043.0,0.051]
[1721767901273,0.004,66044.0,66043.0,0.302416]
[1721767901488,0.004,66044.0,66043.0,0.743249]
[1721767901691,0.004,66044.0,66043.0,1.651748]
[1721767901910,0.004,66044.0,66043.0,2.30236663]
[1721767902115,0.4688,66068.0,66067.0,0.05]
[1721767902332,0.44093655,66069.0,66068.0,0.05]
[1721767902536,0.00083,66070.0,66069.0,0.05]
[1721767903380,0.00083,66070.0,66068.0,0.05]
[1721767903381,0.14784991,66070.0,66068.0,0.05]
[1721767903590,0.60108891,66069.0,66068.0,0.05]
[1721767905882,0.29837591,66069.0,66068.0,0.05]
[1721767906088,0.14701991,66069.0,66068.0,0.05]
[1721767906482,0.29837591,66069.0,66068.0,0.05]
[1721767906835,0.60108891,66069.0,66068.0,0.05]
[1721767907038,0.29837591,66069.0,66068.0,0.05]
[1721767908038,0.60108891,66069.0,66068.0,0.05]
[1721767908239,0.90380191,66069.0,66068.0,0.05]
[1721767908828,0.90380191,66069.0,66067.0,0.05]
[1721767908829,0.756795,66068.0,66067.0,0.05]
[1721767909075,0.90381491,66068.0,66067.0,0.05]
[1721767909287,0.90381491,66068.0,66055.0,0.05]
[1721767909288,0.5922937,66068.0,66059.0,0.05]
[1721767909496,0.151377,66060.0,66059.0,0.05]
[1721767909715,0.60115191,66060.0,66059.0,0.05]
[1721767910123,0.90390691,66060.0,66059.0,0.05]
[1721767910573,0.756942,66055.0,66054.0,0.05]
[1721767910800,0.45418,66053.0,66052.0,0.05]
[1721767911005,0.90398691,66053.0,66052.0,0.05]
[1721767911487,0.60119991,66053.0,66052.0,0.05]
[1721767912985,0.60119991,66053.0,66052.0,0.051]
[1721767913319,0.60119991,66053.0,66052.0,0.05]
[1721767913520,0.60119991,66053.0,66052.0,0.051]
[1721767913723,0.90398691,66053.0,66052.0,0.051]
[1721767914333,0.60119991,66053.0,66052.0,0.051]
[1721767914909,0.90398691,66053.0,66052.0,0.05]
[1721767915131,0.29841291,66053.0,66052.0,0.05]
[1721767915333,0.464123,66067.0,66063.0,0.05]
[1721767915334,0.454104,66064.0,66063.0,0.05]
[1721767915537,1.00385991,66064.0,66063.0,0.05]
[1721767915663,1.00385991,66064.0,66062.0,0.05]
[1721767915664,0.15137,66063.0,66062.0,0.05]
[1721767915864,1.00387191,66063.0,66062.0,0.05]
[1721767917299,0.70113091,66063.0,66062.0,0.05]
[1721767917504,1.00387191,66063.0,66062.0,0.05]
[1721767917889,1.00487191,66063.0,66062.0,0.05]
[1721767918340,0.70213091,66063.0,66062.0,0.05]
[1721767918520,1.00487191,66063.0,66062.0,0.05]
[1721767918883,0.70213091,66063.0,66062.0,0.05]
[1721767919062,0.001,66063.0,66062.0,0.05]
[1721767919906,0.29938991,66063.0,66062.0,0.05]
[1721767920316,0.14801991,66063.0,66062.0,0.05]
[1721767920521,0.29938991,66063.0,66062.0,0.05]
[1721767921365,0.14801991,66063.0,66062.0,0.05]
[1721767921542,0.29938991,66063.0,66062.0,0.05]
[1721767921783,0.60213091,66063.0,66062.0,0.05]
[1721767921994,0.29938991,66063.0,66062.0,0.05]
[1721767922416,0.60213091,66063.0,66062.0,0.05]
[1721767922623,0.29938991,66063.0,66062.0,0.05]
[1721767923443,0.60213091,66063.0,66062.0,0.05]
[1721767924672,0.29938991,66063.0,66062.0,0.05]
[1721767925857,0.90487191,66063.0,66062.0,0.05]
[1721767926249,0.26114126,66063.0,66043.0,0.05]
[1721767926403,0.26114126,66063.0,66050.0,0.05]
[1721767926404,0.302796,66051.0,66050.0,0.05]
[1721767926643,0.93428951,66051.0,66050.0,0.05]
[1721767926848,0.757012,66049.0,66048.0,0.05]
[1721767927049,0.81942691,66049.0,66048.0,0.05]
[1721767927257,1.12223191,66049.0,66048.0,0.05]
[1721767928068,0.5078219,66049.0,66041.0,0.05]
[1721767928269,0.5078219,66049.0,66040.0,0.05]
[1721767928270,0.2182,66042.0,66040.0,0.05]
[1721767928487,0.454282,66038.0,66037.0,0.05]
[1721767928705,0.60130191,66038.0,66037.0,0.05]
[1721767928921,0.90415691,66038.0,66037.0,0.05]
[1721767929541,0.45429,66037.0,66036.0,0.05]
[1721767929783,0.60130991,66037.0,66036.0,0.05]
[1721767930242,0.60130991,66037.0,66033.0,0.05]
[1721767930243,0.454311,66034.0,66033.0,0.05]
[1721767930446,1.12240491,66034.0,66033.0,0.05]
[1721767931184,0.81953091,66034.0,66033.0,0.05]
[1721767932017,0.82253091,66034.0,66033.0,0.05]
[1721767933463,1.11879796,66034.0,66033.0,0.05]
[1721767933688,1.12079796,66034.0,66033.0,0.05]
[1721767933894,1.12079796,66034.0,66028.0,0.05]
[1721767933895,0.36721991,66034.0,66028.0,0.05]
[1721767934102,0.454359,66027.0,66026.0,0.05]
[1721767934314,0.90428491,66027.0,66026.0,0.05]
[1721767934518,0.454372,66025.0,66024.0,0.12332423]
[1721767934722,0.757287,66025.0,66024.0,0.12332423]
[1721767934936,0.757287,66025.0,66023.0,0.05]
[1721767934937,0.7573,66024.0,66023.0,0.05]
[1721767935165,1.12251991,66024.0,66023.0,0.05]
[1721767935368,1.12251991,66024.0,66022.0,0.000924]
[1721767935369,0.75731,66023.0,66022.0,0.000924]
[1721767935576,1.20725391,66023.0,66022.0,0.000924]
[1721767936005,1.20725391,66023.0,66022.0,0.050924]
[1721767936423,1.20725391,66023.0,66022.0,0.000924]
[1721767936823,1.20707167,66023.0,66022.0,0.000924]
[1721767936996,1.28877167,66023.0,66022.0,0.000924]
[1721767937255,1.35167167,66023.0,66022.0,0.000924]
[1721767937665,1.35167167,66023.0,66022.0,0.050924]
[1721767937869,1.35367167,66023.0,66022.0,0.050924]
[1721767938077,1.35367167,66023.0,66022.0,0.000924]
[1721767939316,1.80355832,66023.0,66022.0,0.000924]
[1721767939523,1.90355832,66023.0,66022.0,0.000924]
[1721767940148,1.95355832,66023.0,66022.0,0.000924]
[1721767940357,2.41598232,66023.0,66022.0,0.000924]
[1721767940563,2.41398232,66023.0,66022.0,0.000924]
[1721767941414,2.42398232,66023.0,66022.0,0.001924]
[1721767942667,2.42398232,66023.0,66022.0,0.000924]
[1721767942668,2.11105832,66023.0,66022.0,0.000924]
[1721767942877,2.11105832,66023.0,66022.0,0.001924]
[1721767942878,2.12405832,66023.0,66022.0,0.001924]
[1721767943082,2.42698232,66023.0,66022.0,0.001924]
[1721767943287,2.12405832,66023.0,66022.0,0.001924]
[1721767943493,2.11105832,66023.0,66022.0,0.000924]
[1721767943698,2.11105832,66023.0,66022.0,0.001924]
[1721767943699,2.12505832,66023.0,66022.0,0.001924]
[1721767944319,2.41398232,66023.0,66022.0,0.000924]
[1721767944828,2.41398232,66023.0,66022.0,0.001924]
[1721767944829,2.42798232,66023.0,66022.0,0.001924]
[1721767946487,2.41398232,66023.0,66022.0,0.000924]
[1721767946700,2.41398232,66023.0,66011.0,0.002]
[1721767946701,1.504787,66012.0,66011.0,0.002]
[1721767946897,1.87000691,66012.0,66011.0,0.002]
[1721767947193,1.87000691,66012.0,66008.0,0.009372]
[1721767947194,1.060458,66009.0,66008.0,0.009372]
[1721767947397,1.45444056,66009.0,66008.0,0.009372]
[1721767947522,1.75742856,66009.0,66008.0,0.009372]
[1721767949347,1.83432856,66009.0,66008.0,0.009372]
[1721767949553,2.20341656,66009.0,66008.0,0.009372]
[1721767949759,1.90042856,66009.0,66008.0,0.009372]
[1721767949960,1.91242856,66009.0,66008.0,0.010372]
[1721767950585,1.90042856,66009.0,66008.0,0.009372]
[1721767950786,1.90542856,66009.0,66008.0,0.009372]
[1721767951953,1.76242856,66009.0,66008.0,0.009372]
[1721767952892,1.75742856,66009.0,66008.0,0.009372]
[1721767953011,1.76942856,66009.0,66008.0,0.010372]
[1721767953217,1.31947791,66009.0,66008.0,0.010372]
[1721767953428,1.31947791,66009.0,66008.0,0.060372]
[1721767953637,1.31947791,66009.0,66008.0,0.202472]
[1721767953638,0.61350191,66009.0,66008.0,0.202472]
[1721767954490,0.60150191,66009.0,66008.0,0.201472]
[1721767954699,0.60150191,66009.0,66008.0,0.202472]
[1721767954700,0.61350191,66009.0,66008.0,0.202472]
[1721767956513,0.61350191,66009.0,66008.0,0.605465]
[1721767956514,0.012,66009.0,66008.0,0.605465]
[1721767956757,0.00084,66023.0,66022.0,0.301464]
[1721767956972,0.00084,66023.0,66022.0,0.2861]
[1721767957372,0.00084,66023.0,66022.0,0.437564]
[1721767957571,0.00084,66023.0,66022.0,0.86631523]
[1721767957977,0.01184,66023.0,66022.0,0.86731523]
[1721767958184,0.01184,66023.0,66022.0,0.41292223]
[1721767958396,0.01184,66023.0,66022.0,0.2871]
[1721767958605,0.60224591,66023.0,66022.0,0.1861]
[1721767958804,0.29932191,66023.0,66022.0,0.1861]
[1721767959007,0.60224591,66023.0,66022.0,0.1861]
[1721767959625,0.29932191,66023.0,66022.0,0.1861]
[1721767959826,0.60624591,66023.0,66022.0,0.1861]
[1721767960031,0.30332191,66023.0,66022.0,0.1861]
[1721767960233,0.15185991,66023.0,66022.0,0.1861]
[1721767960439,0.00084,66023.0,66022.0,0.2861]
[1721767960646,0.00084,66023.0,66022.0,0.2891]
[1721767961267,0.00084,66023.0,66022.0,0.2861]
[1721767961469,0.00084,66023.0,66022.0,0.2891]
[1721767962091,1.12336991,66023.0,66022.0,0.1391]
[1721767962295,1.2357069,66023.0,66022.0,0.053]
[1721767962714,0.21904,66023.0,66022.0,0.053]
[1721767962917,0.00084,66023.0,66022.0,0.05]
[1721767963328,0.00084,66023.0,66022.0,0.055]
[1721767963534,0.152302,66023.0,66022.0,0.055]
[1721767963946,0.455226,66023.0,66022.0,0.055]
[1721767964492,0.455226,66023.0,66022.0,0.05]
[1721767964696,0.455226,66023.0,66022.0,0.053]
[1721767966787,0.455226,66023.0,66022.0,0.05]
[1721767966936,0.455226,66023.0,66022.0,0.053]
[1721767967803,0.00084,66023.0,66022.0,0.053]
[1721767968247,0.00084,66023.0,66022.0,0.450764]
[1721767968374,0.00084,66023.0,66022.0,0.753693]
[1721767969502,0.00084,66023.0,66022.0,0.450764]
[1721767969704,0.00084,66023.0,66022.0,0.447764]
[1721767970063,0.00084,66023.0,66022.0,0.451764]
[1721767970268,0.00084,66023.0,66022.0,0.754693]
[1721767970493,0.00084,66023.0,66022.0,1.057622]
[1721767970918,0.00084,66023.0,66022.0,1.053622]
[1721767971125,0.00084,66023.0,66022.0,1.060622]
[1721767971333,0.00184,66023.0,66022.0,1.060622]
[1721767971995,0.00184,66023.0,66022.0,1.18643905]
[1721767972224,0.00184,66023.0,66022.0,1.48936805]
[1721767972512,0.00184,66023.0,66022.0,1.48936637]
[1721767972739,0.00184,66023.0,66022.0,1.18643737]
[1721767973711,0.00184,66023.0,66022.0,1.23152599]
[1721767974993,0.00184,66023.0,66022.0,1.53445499]
[1721767975414,0.00184,66023.0,66022.0,1.53447841]
[1721767975625,0.00184,66023.0,66022.0,1.5223942]
[1721767975829,0.00184,66023.0,66022.0,1.18643403]
[1721767976031,0.00184,66023.0,66022.0,1.55703079]
[1721767976268,0.00184,66023.0,66022.0,1.89297579]
[1721767976463,0.00184,66023.0,66022.0,1.53446333]
[1721767977020,0.00184,66023.0,66022.0,1.48936303]
[1721767977194,0.00184,66023.0,66022.0,1.18643403]
[1721767977650,0.00184,66023.0,66022.0,1.48936303]
[1721767979100,0.00184,66023.0,66022.0,1.363551]
[1721767979315,0.00184,66023.0,66022.0,1.48936324]
[1721767980013,0.00184,66023.0,66022.0,1.53446226]
[1721767980225,0.00184,66023.0,66022.0,1.48936324]
[1721767980441,0.00184,66023.0,66022.0,1.53445182]
[1721767980644,0.00184,66023.0,66022.0,1.48936324]
[1721767981690,0.00184,66023.0,66022.0,1.79229224]
[1721767982305,0.00184,66023.0,66022.0,1.79228077]
[1721767982514,0.00184,66023.0,66022.0,1.48935177]
[1721767982964,0.00184,66023.0,66022.0,1.79228077]
[1721767983186,0.00184,66023.0,66022.0,2.01430068]
[1721767983448,0.00184,66023.0,66022.0,2.53886188]
[1721767983665,0.44093655,66048.0,66047.0,1.045535]
[1721767983872,0.44093655,66048.0,66047.0,1.47414977]
[1721767984085,0.1476,66060.0,66059.0,0.05]
[1721767984721,0.29461991,66060.0,66059.0,0.05]
[1721767984919,0.51281991,66060.0,66059.0,0.05]
[1721767985362,0.44821991,66060.0,66059.0,0.05]
[1721767985607,0.14701991,66060.0,66059.0,0.05]
[1721767986678,0.15001991,66060.0,66059.0,0.05]
[1721767987151,0.29839691,66060.0,66059.0,0.05]
[1721767987360,0.29839691,66060.0,66059.0,0.052]
[1721767987568,0.14701991,66060.0,66059.0,0.052]
[1721767990085,0.302736,66065.0,66059.0,0.052]
[1721767990086,0.0797,66074.0,66069.0,0.05]
[1721767990292,0.0797,66074.0,66069.0,0.065]
[1721767991165,0.151352,66071.0,66069.0,0.065]
[1721767991368,0.382391,66074.0,66069.0,0.065]
[1721767991369,0.00383,66070.0,66069.0,0.066]
[1721767993476,0.15084991,66070.0,66069.0,0.001]
[1721767993684,0.21734991,66070.0,66069.0,0.051]
[1721767995565,0.36870391,66070.0,66069.0,0.051]
[1721767996172,0.21734991,66070.0,66069.0,0.051]
[1721767997952,0.15084991,66070.0,66069.0,0.051]
[1721768000323,0.30220391,66070.0,66069.0,0.051]
[1721768000499,0.74951291,66070.0,66069.0,0.051]
[1721768000720,0.44680391,66070.0,66069.0,0.051]
[1721768000869,0.29544991,66070.0,66069.0,0.051]
[1721768001223,0.74951291,66070.0,66069.0,0.051]
[1721768001440,0.29544991,66070.0,66069.0,0.051]
[1721768002332,0.44380391,66070.0,66069.0,0.05]
[1721768002537,0.151363,66066.0,66065.0,0.05]
[1721768002743,0.51658291,66066.0,66065.0,0.05]
[1721768002897,0.81930991,66066.0,66065.0,0.05]
[1721768004216,1.12203691,66066.0,66065.0,0.05]
[1721768004414,1.25943691,66066.0,66065.0,0.05]
[1721768004702,0.95670991,66066.0,66065.0,0.05]
[1721768005006,1.25943691,66066.0,66064.0,0.05]
[1721768005207,1.25943691,66066.0,66056.0,0.07348942]
[1721768005208,0.15137,66063.0,66062.0,0.05]
[1721768005537,0.15137,66063.0,66056.0,0.07348942]
[1721768005538,0.593617,66062.0,66061.0,0.05]
[1721768005708,0.74063691,66062.0,66061.0,0.05]
[1721768006440,0.43789191,66062.0,66061.0,0.05]
[1721768006822,0.43789191,66062.0,66061.0,0.052]
[1721768007023,0.74063691,66062.0,66061.0,0.052]
[1721768007225,0.43789191,66062.0,66061.0,0.052]
[1721768007425,0.74063691,66062.0,66061.0,0.052]
[1721768007792,0.43789191,66062.0,66061.0,0.052]
[1721768008441,1.04338191,66062.0,66061.0,0.052]
[1721768008639,0.74063691,66062.0,66061.0,0.052]
[1721768009294,1.04338191,66062.0,66061.0,0.052]
[1721768009598,1.04338191,66062.0,66061.0,0.002]
[1721768009800,1.34612691,66062.0,66061.0,0.002]
[1721768010207,1.42540878,66062.0,66061.0,0.002]
[1721768010831,1.42540878,66062.0,66058.0,0.05]
[1721768010832,0.756897,66059.0,66058.0,0.05]
[1721768011056,0.90391691,66059.0,66058.0,0.05]
[1721768012128,0.60115791,66059.0,66058.0,0.05]
[1721768012569,0.29839891,66059.0,66058.0,0.05]
[1721768012820,0.60115791,66059.0,66058.0,0.05]
[1721768013352,0.60115791,66059.0,66058.0,0.051]
[1721768013353,0.60415791,66059.0,66058.0,0.051]
[1721768013911,0.30274,66064.0,66058.0,0.051]
[1721768013912,0.0786,66073.0,66069.0,0.05]
[1721768014176,0.0786,66073.0,66069.0,0.12348942]
[1721768014177,0.14784991,66070.0,66069.0,0.12348942]
[1721768014399,0.14784991,66070.0,66069.0,0.26548942]
[1721768014400,0.00083,66070.0,66069.0,0.26548942]
[1721768016081,0.00083,66070.0,66069.0,0.192]
[1721768016329,0.00083,66070.0,66069.0,0.051]
[1721768016876,0.74351291,66070.0,66069.0,0.051]
[1721768017643,0.14784991,66070.0,66069.0,0.051]
[1721768018341,0.14784991,66070.0,66069.0,0.05]
[1721768018583,0.29920391,66070.0,66069.0,0.05]
[1721768019045,0.30220391,66070.0,66069.0,0.05]
[1721768019477,0.29920391,66070.0,66069.0,0.05]
[1721768019753,0.60291291,66070.0,66069.0,0.05]
[1721768019962,0.90562191,66070.0,66069.0,0.05]
[1721768020110,0.30020391,66070.0,66069.0,0.05]
[1721768020314,0.60291291,66070.0,66069.0,0.05]
[1721768020500,0.90562191,66070.0,66069.0,0.05]
[1721768021513,0.60291291,66070.0,66069.0,0.05]
[1721768022110,0.14784991,66070.0,66069.0,0.05]
[1721768022310,0.60191291,66070.0,66069.0,0.05]
[1721768022586,0.60291291,66070.0,66069.0,0.05]
[1721768022972,0.30020391,66070.0,66069.0,0.05]
[1721768023146,0.60191291,66070.0,66069.0,0.05]
[1721768023546,0.60291291,66070.0,66069.0,0.05]
[1721768023950,0.60191291,66070.0,66069.0,0.05]
[1721768024155,0.29920391,66070.0,66069.0,0.05]
[1721768024544,0.151357,66069.0,66063.0,0.15137]
[1721768024803,0.151357,66069.0,66068.0,0.05]
[1721768025757,0.45407,66069.0,66068.0,0.05]
[1721768025959,0.60108991,66069.0,66068.0,0.05]
[1721768026392,0.29837691,66069.0,66068.0,0.05]
[1721768027014,0.29837691,66069.0,66066.0,0.05]
[1721768027015,0.151361,66067.0,66066.0,0.05]
[1721768027231,0.151363,66066.0,66065.0,0.05]
[1721768027424,0.60110991,66066.0,66065.0,0.05]
[1721768027787,0.90383691,66066.0,66065.0,0.05]
[1721768028235,0.90383691,66066.0,66054.0,0.1]
[1721768028236,0.302746,66062.0,66053.0,0.1396]
[1721768028416,0.36521991,66066.0,66060.0,0.05]
[1721768028417,0.14701991,66061.0,66060.0,0.05]
[1721768028623,0.60114491,66061.0,66060.0,0.05]
[1721768028781,0.90389791,66061.0,66060.0,0.05]
[1721768028989,0.454132,66060.0,66059.0,0.05]
[1721768029186,0.90390691,66060.0,66059.0,0.05]
[1721768030026,0.756897,66059.0,66058.0,0.05]
[1721768030226,0.756897,66059.0,66050.0,0.0614]
[1721768030227,0.454146,66058.0,66057.0,0.05]
[1721768030608,0.60116591,66058.0,66057.0,0.05]
[1721768031232,0.73986591,66058.0,66057.0,0.05]
[1721768031411,1.04262991,66058.0,66057.0,0.05]
[1721768032182,0.75692,66057.0,66056.0,0.05]
[1721768032430,0.90393991,66057.0,66056.0,0.05]
[1721768033234,0.90693991,66057.0,66056.0,0.051]
[1721768035801,0.90393991,66057.0,66056.0,0.05]
[1721768036032,0.90693991,66057.0,66056.0,0.051]
[1721768038449,0.90393991,66057.0,66056.0,0.05]
[1721768038865,0.90693991,66057.0,66056.0,0.05]
[1721768039063,0.151392,66054.0,66053.0,0.05]
[1721768039230,0.151392,66054.0,66052.0,0.05]
[1721768039231,0.45418,66053.0,66052.0,0.05]
[1721768039439,0.45418,66053.0,66049.0,0.0782]
[1721768039440,0.1514,66050.0,66049.0,0.05]
[1721768039636,0.1514,66050.0,66048.0,0.07348942]
[1721768039637,0.003,66057.0,66052.0,0.05]
[1721768039951,0.45418,66053.0,66052.0,0.05]
[1721768040325,0.14701991,66053.0,66052.0,0.05]
[1721768040546,0.14701991,66053.0,66052.0,0.1104]
[1721768043410,0.14801991,66053.0,66052.0,0.1104]
[1721768045473,0.14701991,66053.0,66052.0,0.1104]
[1721768046064,0.14701991,66053.0,66052.0,0.564586]
[1721768046484,0.14701991,66053.0,66052.0,0.261795]
[1721768046691,0.14701991,66053.0,66052.0,0.1104]
[1721768047725,0.14785991,66053.0,66052.0,0.1104]
[1721768048759,0.15085991,66053.0,66052.0,0.1104]
[1721768049169,0.14785991,66053.0,66052.0,0.1104]
[1721768054773,0.14785991,66053.0,66052.0,0.1114]
[1721768057883,0.29925291,66053.0,66052.0,0.1114]
[1721768058089,0.14785991,66053.0,66052.0,0.05]
[1721768058314,0.29925291,66053.0,66052.0,0.05]
[1721768058451,0.30225291,66053.0,66052.0,0.05]
[1721768058856,0.60503991,66053.0,66052.0,0.05]
[1721768059057,0.29925291,66053.0,66052.0,0.05]
[1721768059401,0.30025291,66053.0,66052.0,0.05]
[1721768059827,0.29925291,66053.0,66052.0,0.05]
[1721768060074,0.60503991,66053.0,66052.0,0.05]
[1721768060487,1.059786,66051.0,66050.0,0.05]
[1721768060691,1.059786,66051.0,66044.0,0.05]
[1721768060692,0.151411,66045.0,66044.0,0.05]
[1721768060894,0.60125391,66045.0,66044.0,0.05]
[1721768061581,0.90407691,66045.0,66044.0,0.05]
[1721768062405,0.90407691,66045.0,66034.0,0.21598942]
[1721768062406,0.151433,66036.0,66034.0,0.21598942]
[1721768062616,0.6238097,66045.0,66034.0,0.21598942]
[1721768062617,0.302847,66040.0,66034.0,0.21598942]
[1721768062873,0.302842,66041.0,66040.0,0.05]
[1721768062874,0.454263,66041.0,66040.0,0.05]
[1721768063278,0.757109,66041.0,66040.0,0.05]
[1721768065515,0.768109,66041.0,66040.0,0.051]
[1721768065964,0.757109,66041.0,66040.0,0.05]
[1721768066179,0.757137,66038.0,66037.0,0.05]
[1721768066392,0.454282,66038.0,66037.0,0.15]
[1721768067493,0.454282,66038.0,66037.0,0.05]
[1721768067730,0.454282,66038.0,66037.0,0.15]
[1721768068511,0.456282,66038.0,66037.0,0.15]
[1721768068914,0.153427,66038.0,66037.0,0.15]
[1721768069264,0.454282,66038.0,66037.0,0.15]
[1721768069413,0.458282,66038.0,66037.0,0.15]
[1721768069988,0.004,66038.0,66037.0,0.15]
[1721768070191,0.155427,66038.0,66037.0,0.15]
[1721768070593,0.151427,66038.0,66037.0,0.15]
[1721768070999,0.153427,66038.0,66037.0,0.15]